bitfinex/quotes_SOLUSD_20240607
["timestamp","ask_amount","ask_price","bid_price","bid_amount"]
[1717790562693,2.2853,161.91,161.77,6.0845]
[1717790562920,20.8553,161.91,161.85,2.2859]
[1717790563130,20.8553,161.91,161.86,2.2859]
[1717790563907,20.8553,161.9,161.85,2.286]
[1717790564129,18.57,161.9,161.85,2.286]
[1717790564339,20.8553,161.9,161.85,2.286]
[1717790564534,20.8553,161.9,161.84,2.2861]
[1717790564704,20.8553,161.9,161.85,2.286]
[1717790565137,20.8553,161.9,161.84,2.2861]
[1717790565339,2.2855,161.89,161.84,2.2861]
[1717790565518,20.8555,161.89,161.83,2.2862]
[1717790565717,20.8555,161.89,161.84,2.2861]
[1717790566329,2.2856,161.88,161.83,2.2862]
[1717790566687,2.2857,161.87,161.82,2.2864]
[1717790567733,20.8556,161.88,161.82,2.2864]
[1717790568147,20.8556,161.88,161.83,2.2863]
[1717790568328,18.57,161.88,161.83,2.2863]
[1717790569427,18.57,161.87,161.83,2.2863]
[1717790570021,18.57,161.87,161.84,2.2862]
[1717790570427,18.57,161.88,161.83,2.2862]
[1717790571056,18.57,161.88,161.84,2.2861]
[1717790571549,18.57,161.87,161.83,2.2863]
[1717790571746,20.8558,161.87,161.82,2.2864]
[1717790572133,20.8558,161.87,161.8,4.5733]
[1717790572134,18.57,161.87,161.83,2.2863]
[1717790572451,18.57,161.87,161.84,2.2861]
[1717790572649,20.8556,161.88,161.83,2.2863]
[1717790572954,20.8556,161.88,161.82,2.2863]
[1717790573143,20.8556,161.88,161.83,2.2863]
[1717790573449,18.57,161.88,161.83,2.2863]
[1717790573757,18.57,161.87,161.83,2.2863]
[1717790574647,20.8555,161.89,161.84,2.2861]
[1717790574855,26.8639,161.89,161.84,2.2861]
[1717790575152,24.5784,161.89,161.84,2.2861]
[1717790575652,26.8639,161.89,161.84,2.2861]
[1717790575860,26.8639,161.89,161.83,2.2862]
[1717790576362,18.57,161.87,161.83,2.2863]
[1717790577240,18.57,161.87,161.84,2.2861]
[1717790577653,18.57,161.87,161.83,2.2862]
[1717790577848,18.57,161.87,161.81,4.573]
[1717790578048,18.57,161.87,161.84,2.2861]
[1717790578264,24.7096,161.88,161.84,2.2861]
[1717790578568,18.57,161.86,161.82,2.2863]
[1717790578865,18.57,161.86,161.83,2.2863]
[1717790579445,18.57,161.87,161.83,2.2863]
[1717790579649,18.57,161.87,161.84,2.2862]
[1717790580236,46.8472,161.9,161.77,6.0845]
[1717790580453,46.8472,161.9,161.85,2.2859]
[1717790580654,46.8472,161.9,161.86,2.2859]
[1717790580954,49.1326,161.9,161.85,2.286]
[1717790581163,18.57,161.88,161.84,2.2861]
[1717790581351,18.57,161.88,161.81,4.5732]
[1717790581865,18.57,161.88,161.85,2.286]
[1717790582044,18.57,161.88,161.84,2.2861]
[1717790582364,25.1153,161.89,161.85,2.286]
[1717790583467,18.57,161.91,161.77,6.0845]
[1717790583671,6.8588,161.93,161.79,22.03]
[1717790583979,7.42547414,161.92,161.9,2.2852]
[1717790584141,6.8588,161.93,161.9,2.2853]
[1717790584566,6.8588,161.93,161.91,2.2852]
[1717790584860,18.57,161.94,161.91,2.2852]
[1717790585154,18.57,161.94,161.9,2.2853]
[1717790585564,20.8548,161.94,161.9,2.2853]
[1717790585746,18.57,161.94,161.9,2.2853]
[1717790586571,23.57509805,161.94,161.91,2.2852]
[1717790587171,5.00509805,161.94,161.88,4.5711]
[1717790587468,2.2843,161.98,161.89,11.4271]
[1717790587646,9.70824717,161.97,161.92,2.2849]
[1717790587839,7.42384717,161.96,161.93,2.2849]
[1717790588247,34.5702,161.97,161.93,2.2849]
[1717790588864,20.8545,161.96,161.91,2.2851]
[1717790589062,18.57,161.96,161.92,2.285]
[1717790589270,16.0002,161.97,161.85,6.0787]
[1717790589444,16.0002,161.97,161.93,2.2848]
[1717790590989,18.57,161.96,161.87,9.1427]
[1717790591262,20.8547,161.95,161.86,11.4289]
[1717790591473,20.8548,161.94,161.89,2.2854]
[1717790591692,18.57,161.94,161.9,2.2853]
[1717790591839,18.57,161.94,161.9,2.2852]
[1717790592039,18.57,161.94,161.91,2.2851]
[1717790592442,63.57,161.96,161.93,2.2848]
[1717790592666,6.8558,161.97,161.93,2.2848]
[1717790592849,6.8558,161.97,161.94,2.2847]
[1717790593378,6.8558,161.97,161.93,2.2848]
[1717790593552,7.34934049,162.0,161.85,28.1087]
[1717790593756,7.34934049,162.0,161.95,2.2845]
[1717790594384,20.8541,161.99,161.94,2.2847]
[1717790595484,18.57,162.0,161.91,9.1403]
[1717790595670,18.57,162.0,161.85,110.1087]
[1717790596383,18.57,162.0,161.95,2.2845]
[1717790597686,18.57,162.0,161.96,2.2844]
[1717790597893,18.57,162.0,161.96,2.2845]
[1717790598394,27.00139476,162.02,161.95,4.569]
[1717790598561,7.25499476,162.02,161.97,2.2842]
[1717790598763,32.2785,162.03,161.98,2.2842]
[1717790599087,11.425,162.03,162.0,2.2839]
[1717790599385,31.7786,162.03,161.95,4.5692]
[1717790599591,18.57,162.01,161.93,6.6012]
[1717790599760,2.2839,162.0,161.93,6.6012]
[1717790600165,20.8538,162.01,161.95,2.2845]
[1717790600470,18.57,162.01,161.97,2.2843]
[1717790600673,18.57,161.99,161.95,2.2845]
[1717790600887,18.57,161.99,161.89,6.0499]
[1717790600888,20.8541,161.99,161.94,2.2847]
[1717790601186,18.57,161.99,161.95,2.2846]
[1717790601590,18.57,161.99,161.89,19.7625]
[1717790601899,20.8544,161.97,161.92,2.2849]
[1717790602189,18.57,161.97,161.93,2.2849]
[1717790602488,18.57,161.97,161.94,2.2847]
[1717790602868,18.57,161.97,161.89,22.0479]
[1717790602869,2.2844,161.97,161.92,2.285]
[1717790603070,24.9657,161.98,161.94,2.2847]
[1717790603464,27.2499,161.98,161.93,2.2849]
[1717790604208,18.57,161.96,161.92,2.285]
[1717790604393,20.8545,161.96,161.91,2.2851]
[1717790604698,25.0046,161.96,161.92,2.285]
[1717790604880,25.0046,161.96,161.9,2.2852]
[1717790605078,26.9137,161.95,161.9,2.2852]
[1717790605595,26.9137,161.95,161.88,4.5711]
[1717790605596,24.6291,161.95,161.91,2.2851]
[1717790606574,26.9137,161.95,161.9,2.2853]
[1717790607083,24.6291,161.95,161.91,2.2852]
[1717790609013,18.57,161.93,161.89,2.2854]
[1717790609473,18.57,161.93,161.91,2.2852]
[1717790609998,18.57,161.93,161.84,4.5722]
[1717790610302,2.2852,161.91,161.87,2.2857]
[1717790610484,27.068,161.92,161.87,2.2857]
[1717790610685,24.7829,161.92,161.85,4.5719]
[1717790610886,24.7829,161.92,161.88,2.2855]
[1717790611277,27.068,161.92,161.88,2.2855]
[1717790611480,27.068,161.92,161.88,2.2856]
[1717790611888,24.7829,161.92,161.89,2.2854]
[1717790612196,18.57,161.92,161.89,2.2854]
[1717790613099,18.57,161.92,161.85,13.716]
[1717790613100,18.57,161.92,161.88,2.2855]
[1717790613279,20.8551,161.92,161.88,2.2855]
[1717790613479,18.57,161.92,161.88,2.2855]
[1717790613701,18.57,161.92,161.89,2.2854]
[1717790614387,18.57,161.92,161.88,2.2855]
[1717790614975,18.57,161.92,161.89,2.2854]
[1717790615697,18.57,161.92,161.88,2.2855]
[1717790616009,23.53185642,161.93,161.9,2.2853]
[1717790616615,25.81675642,161.93,161.89,2.2854]
[1717790616791,23.53185642,161.93,161.89,2.2854]
[1717790617108,25.81675642,161.93,161.88,2.2855]
[1717790617695,23.53185642,161.93,161.9,2.2853]
[1717790618001,7.34,161.91,161.9,2.2853]
[1717790618399,7.34,161.91,161.89,2.2854]
[1717790618605,7.34,161.9,161.89,2.2854]
[1717790627889,7.34,161.9,161.85,7.34]
[1717790627890,7.34,161.9,161.88,2.2855]
[1717790628417,7.34,161.9,161.89,2.2855]
[1717790631013,18.57,161.91,161.9,2.2853]
[1717790631197,7.34,161.91,161.9,2.2853]
[1717790631996,7.34,161.91,161.89,2.2854]
[1717790632198,7.34,161.9,161.89,2.2854]
[1717790634605,7.34,161.9,161.88,2.2855]
[1717790634928,7.34,161.89,161.88,2.2855]
[1717790635108,27.713,161.93,161.89,2.2854]
[1717790635419,7.34,161.9,161.89,2.2854]
[1717790639537,25.4281,161.93,161.9,2.2853]
[1717790639834,7.34,161.91,161.9,2.2853]
[1717790640044,5.07073418,161.96,161.89,4.5709]
[1717790640249,387.5,161.98,161.88,7.34]
[1717790640250,7.34,161.94,161.88,7.34]
[1717790640536,7.34,161.95,161.94,2.2847]
[1717790642721,7.34,161.96,161.94,4.5695]
[1717790643042,387.5,161.98,161.97,2.2843]
[1717790643224,9.14,162.01,161.97,2.2843]
[1717790643561,7.34,161.99,161.97,2.2843]
[1717790643835,7.34,161.98,161.96,2.2844]
[1717790644041,9.14,162.01,161.97,2.2843]
[1717790644239,7.34,161.98,161.97,2.2843]
[1717790644458,7.34,161.98,161.96,2.2844]
[1717790644740,7.34,161.97,161.96,2.2844]
[1717790645716,18.57,162.0,161.97,2.2843]
[1717790645937,7.34,161.98,161.97,2.2843]
[1717790647940,7.34,161.98,161.96,2.2844]
[1717790648237,7.34,161.98,161.95,2.2845]
[1717790648444,7.34,161.97,161.96,2.2844]
[1717790649536,7.34,161.98,161.97,2.2843]
[1717790650032,23.39823784,162.01,161.97,2.2843]
[1717790650232,7.34,161.98,161.97,2.2843]
[1717790650421,7.34,161.99,161.98,2.2842]
[1717790650828,7.34,161.99,161.97,2.2843]
[1717790651352,18.57,162.03,162.0,2.2839]
[1717790651650,7.34,162.01,162.0,2.2839]
[1717790652224,7.34,162.01,161.99,2.284]
[1717790652731,18.57,162.04,162.0,2.2839]
[1717790652930,7.34,162.01,162.0,2.2839]
[1717790654142,7.34,162.02,162.01,2.2837]
[1717790654335,7.34,162.03,162.01,2.2837]
[1717790654540,7.34,162.02,162.01,2.2837]
[1717790655458,7.34,162.03,162.01,2.2837]
[1717790655663,7.34,162.03,162.02,2.2836]
[1717790655861,7.34,162.03,162.01,2.2837]
[1717790656070,7.34,162.02,162.0,2.2838]
[1717790656448,7.34,162.01,162.0,2.2838]
[1717790656751,7.34,162.01,161.98,2.2841]
[1717790656951,7.34,161.99,161.98,2.2841]
[1717790657678,7.34,161.99,161.96,10.9551]
[1717790657679,7.34,161.99,161.96,2.2844]
[1717790657987,7.34,161.97,161.92,10.9564]
[1717790658278,47.93,162.0,161.96,2.2845]
[1717790658456,50.2139,162.0,161.96,2.2845]
[1717790658658,47.93,162.0,161.96,2.2845]
[1717790658842,47.93,162.0,161.97,2.2843]
[1717790659254,18.57,162.01,161.93,7.34]
[1717790659462,18.57,162.01,161.94,7.34]
[1717790659665,7.34,162.0,161.98,2.2841]
[1717790660357,7.34,162.0,161.96,4.5689]
[1717790660664,7.34,162.01,161.99,2.284]
[1717790660872,7.34,162.01,162.0,2.2839]
[1717790661447,7.34,162.01,161.99,2.284]
[1717790662060,7.34,162.01,161.96,11.4222]
[1717790662061,7.34,162.01,162.0,2.2839]
[1717790663277,7.34,162.02,162.0,2.2838]
[1717790665266,7.34,162.02,162.01,2.2838]
[1717790665477,5.0405813,162.05,161.92,29.36]
[1717790665478,7.34,162.05,162.03,2.2834]
[1717790665659,7.34,162.05,162.04,2.2833]
[1717790666375,7.34,162.06,162.04,2.2833]
[1717790666670,18.57,162.08,162.04,2.2833]
[1717790666671,7.34,162.05,162.04,2.2833]
[1717790666882,7.34,162.05,162.03,2.2834]
[1717790667389,7.34,162.05,162.04,2.2833]
[1717790667560,7.34,162.05,162.03,2.2834]
[1717790667753,25.91,162.04,161.96,10.9527]
[1717790667954,7.34,162.0,161.96,17.8061]
[1717790668161,7.34,161.99,161.96,10.9527]
[1717790668384,7.34,161.99,161.98,2.2842]
[1717790668885,18.57,162.04,161.98,11.4209]
[1717790669181,8.2915,162.07,162.02,2.2835]
[1717790669360,7.34,162.03,162.02,2.2835]
[1717790669558,7.34,162.03,162.01,2.2837]
[1717790669754,7.34,162.02,162.01,2.2837]
[1717790670558,7.34,162.02,162.0,2.2838]
[1717790670759,7.34,162.02,161.99,2.284]
[1717790670959,7.34,162.0,161.99,2.284]
[1717790672998,20.8531,162.06,162.01,2.2836]
[1717790673167,7.34,162.02,161.99,4.5681]
[1717790673789,7.34,162.03,162.02,2.2836]
[1717790673983,47.93,162.08,162.05,2.2832]
[1717790674290,7.34,162.06,162.05,2.2832]
[1717790674487,25.91,162.06,162.05,2.2832]
[1717790674868,25.91,162.06,162.04,2.2833]
[1717790678775,7.34,162.06,162.04,2.2833]
[1717790678999,7.34,162.05,162.04,2.2833]
[1717790682311,7.34,162.05,162.02,2.2836]
[1717790682520,7.34,162.05,162.01,2.2837]
[1717790682801,7.34,162.05,161.97,23.3297]
[1717790682802,7.34,162.02,162.0,2.2838]
[1717790682985,7.34,162.01,162.0,2.2838]
[1717790683396,7.34,162.02,161.99,4.568]
[1717790683597,7.34,162.02,162.01,2.2838]
[1717790685692,7.34,162.02,162.0,2.2838]
[1717790685918,7.34,162.01,162.0,2.2839]
[1717790687498,7.34,162.01,161.96,6.8532]
[1717790687698,2.2837,162.02,161.98,2.2842]
[1717790687904,7.34,161.99,161.98,2.2842]
[1717790689001,7.34,161.99,161.93,13.7091]
[1717790689309,38.0919,162.0,161.96,2.2845]
[1717790689609,7.34,161.97,161.96,2.2845]
[1717790691121,35.8079,162.0,161.97,2.2843]
[1717790691300,7.34,161.98,161.97,2.2843]
[1717790693001,7.34,161.98,161.93,13.7091]
[1717790693206,29.36,162.0,161.97,2.2843]
[1717790693399,7.34,161.98,161.97,2.2843]
[1717790696424,7.34,161.98,161.96,2.2844]
[1717790696623,7.34,161.97,161.96,2.2844]
[1717790696921,2.2838,162.01,161.97,2.2843]
[1717790697303,7.34,161.98,161.97,2.2843]
[1717790697701,7.34,161.98,161.96,2.2844]
[1717790697907,7.34,161.97,161.93,2.2848]
[1717790698106,7.34,161.94,161.93,2.2848]
[1717790698814,7.34,161.94,161.92,2.285]
[1717790699020,7.34,161.93,161.92,2.285]
[1717790699836,7.34,161.93,161.91,2.2851]
[1717790700204,7.34,161.92,161.88,4.5711]
[1717790700520,7.34,161.91,161.9,2.2853]
[1717790701097,7.34,161.91,161.89,2.2854]
[1717790701298,7.34,161.9,161.89,2.2854]
[1717790701532,7.34,161.9,161.88,2.2855]
[1717790701914,7.34,161.89,161.88,2.2855]
[1717790702107,7.34,161.89,161.83,4.5725]
[1717790702320,7.34,161.86,161.85,2.286]
[1717790703413,8.6959,161.91,161.86,2.2858]
[1717790703604,7.34,161.87,161.86,2.2858]
[1717790704013,8.6959,161.91,161.87,2.2857]
[1717790704216,7.34,161.88,161.86,2.2858]
[1717790704418,7.34,161.87,161.86,2.2858]
[1717790707041,8.6959,161.91,161.87,2.2857]
[1717790707207,7.34,161.88,161.87,2.2857]
[1717790707402,7.34,161.88,161.87,1e-08]
[1717790707627,7.34,161.88,161.76,15.3779]
[1717790707628,45.0,161.88,161.78,10.8008]
[1717790707931,4.571,161.89,161.78,10.8008]
[1717790707932,7.34,161.86,161.8,11.4337]
[1717790708128,6.2526,161.91,161.85,2.286]
[1717790708339,7.34,161.86,161.85,2.286]
[1717790709513,8.5378,161.91,161.86,2.2859]
[1717790709713,7.34,161.87,161.86,2.2859]
[1717790710531,7.34,161.87,161.86,2.2858]
[1717790711041,7.34,161.87,161.85,2.286]
[1717790711406,2.2852,161.91,161.85,2.286]
[1717790711649,7.34,161.86,161.85,2.286]
[1717790713127,7.34,161.86,161.83,2.2862]
[1717790713458,7.34,161.84,161.8,6.3634]
[1717790713639,2.2856,161.88,161.83,2.2862]
[1717790713846,7.34,161.84,161.8,6.3634]
[1717790714036,7.34,161.84,161.83,2.2863]
[1717790714236,7.34,161.84,161.8,6.3634]
[1717790714554,45.0,161.91,161.81,4.5732]
[1717790714732,7.34,161.85,161.84,2.286]
[1717790715058,45.0,161.91,161.86,2.2859]
[1717790715237,7.34,161.87,161.86,2.2859]
[1717790715441,7.17561448,161.92,161.87,2.2857]
[1717790715648,7.34,161.89,161.87,2.2857]
[1717790715857,7.34,161.89,161.8,6.3634]
[1717790715858,7.34,161.88,161.8,6.3634]
[1717790716058,2.2855,161.89,161.84,2.286]
[1717790716368,7.34,161.85,161.84,2.286]
[1717790717859,2.2854,161.9,161.85,2.286]
[1717790718161,34.25051448,161.92,161.8,13.2234]
[1717790718162,7.34,161.86,161.8,6.3634]
[1717790718351,49.5704,161.91,161.82,2.2864]
[1717790718352,7.34,161.83,161.82,2.2864]
[1717790718738,7.34,161.83,161.81,2.2866]
[1717790718957,7.34,161.82,161.81,2.2866]
[1717790720059,7.34,161.82,161.78,2.2869]
[1717790720247,7.34,161.79,161.78,2.2869]
[1717790721438,2.2861,161.85,161.77,4.5743]
[1717790721662,7.34,161.81,161.8,2.2866]
[1717790721861,7.34,161.81,161.79,2.2868]
[1717790722156,7.34,161.8,161.79,2.2868]
[1717790723743,7.34,161.81,161.78,4.5741]
[1717790723944,2.2859,161.86,161.81,2.2865]
[1717790724263,7.34,161.83,161.81,2.2865]
[1717790724463,7.34,161.83,161.78,11.1306]
[1717790724667,7.34,161.84,161.82,2.2864]
[1717790724840,7.34,161.84,161.83,2.2863]
[1717790725460,387.5,161.89,161.81,6.8597]
[1717790725641,387.5,161.89,161.87,2.2857]
[1717790725844,7.34,161.88,161.85,2.286]
[1717790726152,7.34,161.86,161.85,2.286]
[1717790727355,7.34,161.86,161.84,2.2861]
[1717790727546,7.34,161.85,161.84,2.2861]
[1717790728662,7.34,161.85,161.81,2.2864]
[1717790728868,7.34,161.82,161.81,2.2864]
[1717790729973,7.34,161.83,161.82,2.2864]
[1717790730472,7.34,161.84,161.83,2.2863]
[1717790730674,7.34,161.85,161.84,2.2862]
[1717790730881,6.861,161.88,161.85,2.286]
[1717790731051,7.34,161.86,161.82,4.5728]
[1717790731449,7.34,161.86,161.82,11.1058]
[1717790731671,7.34,161.86,161.85,2.2859]
[1717790733153,7.34,161.86,161.84,2.2861]
[1717790733373,7.34,161.85,161.84,2.2861]
[1717790733946,2.2856,161.88,161.84,2.2861]
[1717790734583,2.2856,161.88,161.83,2.2862]
[1717790734770,2.2858,161.87,161.83,2.2862]
[1717790736078,6.3124,161.86,161.78,6.4148]
[1717790736281,2.2861,161.85,161.8,2.2866]
[1717790736456,45.0,161.85,161.77,4.5741]
[1717790736655,2.2863,161.83,161.79,2.2868]
[1717790737166,47.2862,161.84,161.79,2.2868]
[1717790737470,45.0,161.83,161.79,2.2868]
[1717790737680,2.2862,161.84,161.79,2.2868]
[1717790737876,2.2862,161.84,161.77,4.5741]
[1717790738084,2.2863,161.83,161.79,2.2868]
[1717790738256,2.2865,161.82,161.78,2.287]
[1717790738979,45.0,161.82,161.78,2.287]
[1717790739398,45.0,161.82,161.79,2.2868]
[1717790739672,22.02,161.83,161.75,16.0121]
[1717790739877,6.3124,161.85,161.8,2.2866]
[1717790740087,45.0,161.84,161.8,2.2866]
[1717790740579,47.2862,161.84,161.8,2.2866]
[1717790740780,2.2863,161.83,161.79,2.2868]
[1717790741866,47.2862,161.84,161.8,2.2867]
[1717790742176,4.99463455,161.85,161.79,4.5738]
[1717790742483,24.3059,161.86,161.79,4.5738]
[1717790742680,47.286,161.85,161.81,2.2865]
[1717790742882,45.0,161.85,161.74,15.3374]
[1717790743060,2.2865,161.82,161.78,2.2869]
[1717790743868,2.2863,161.83,161.79,2.2869]
[1717790744072,2.2862,161.84,161.8,2.2867]
[1717790744281,53.4139,161.85,161.8,2.2867]
[1717790744497,53.4139,161.85,161.81,2.2866]
[1717790744785,45.0,161.85,161.82,2.2864]
[1717790745166,2.2857,161.88,161.75,15.6659]
[1717790745372,29.36,161.9,161.86,2.2857]
[1717790745770,31.6454,161.9,161.86,2.2857]
[1717790745970,31.6454,161.9,161.85,2.2859]
[1717790746169,2.2855,161.89,161.85,2.2859]
[1717790747789,2.2856,161.88,161.84,2.2861]
[1717790747985,6.6177,161.89,161.84,2.2861]
[1717790748186,2.2859,161.86,161.82,2.2864]
[1717790748565,2.2858,161.87,161.83,2.2863]
[1717790748986,45.0,161.88,161.81,2.2865]
[1717790748987,2.286,161.85,161.81,2.2865]
[1717790749182,2.2859,161.86,161.82,2.2864]
[1717790749394,47.2859,161.86,161.82,2.2864]
[1717790749773,45.0,161.86,161.83,2.2863]
[1717790750371,47.2859,161.86,161.82,2.2864]
[1717790750886,2.286,161.85,161.82,2.2864]
[1717790751097,45.0,161.85,161.82,2.2864]
[1717790751467,45.0,161.86,161.8,4.5735]
[1717790751670,47.2859,161.86,161.82,2.2864]
[1717790755693,2.2861,161.85,161.81,2.2865]
[1717790755900,47.2861,161.85,161.81,2.2865]
[1717790756198,47.2861,161.85,161.82,2.2864]
[1717790756505,2.2861,161.85,161.81,2.2865]
[1717790756684,2.2862,161.84,161.78,4.574]
[1717790756883,45.0,161.86,161.79,4.5737]
[1717790757188,2.286,161.85,161.81,2.2865]
[1717790757394,47.2859,161.86,161.82,2.2864]
[1717790758899,2.286,161.85,161.81,2.2865]
[1717790759876,7.35,161.82,161.81,2.2865]
[1717790760703,7.35,161.82,161.79,4.5737]
[1717790760704,7.35,161.82,161.8,2.2867]
[1717790760903,7.35,161.81,161.8,2.2867]
[1717790761481,7.35,161.81,161.78,4.574]
[1717790761801,7.35,161.79,161.78,4.574]
[1717790762014,7.35,161.79,161.78,6.861]
[1717790762305,7.35,161.84,161.81,2.2865]
[1717790762537,9.1413,161.91,161.84,2.2861]
[1717790762797,136.2536,161.94,161.85,2.2859]
[1717790762798,7.42631605,161.88,161.85,2.2859]
[1717790762997,7.35,161.86,161.83,2.2862]
[1717790763182,7.35,161.85,161.84,2.2861]
[1717790764304,2.2856,161.88,161.84,2.2861]
[1717790764486,7.35,161.85,161.84,2.2861]
[1717790764799,7.35,161.85,161.83,2.2863]
[1717790764979,7.35,161.84,161.83,2.2863]
[1717790765176,7.35,161.85,161.84,2.2861]
[1717790767688,7.35,161.85,161.82,2.2863]
[1717790767890,7.35,161.83,161.82,2.2863]
[1717790769605,7.35,161.83,161.79,4.5737]
[1717790769780,7.35,161.81,161.79,4.5737]
[1717790770415,9.6362,161.84,161.8,2.2867]
[1717790770601,7.35,161.81,161.77,2.287]
[1717790770796,7.35,161.78,161.76,2.2873]
[1717790770988,7.35,161.77,161.76,2.2873]
[1717790771682,7.35,161.77,161.75,2.2874]
[1717790772292,7.35,161.77,161.7,6.3754]
[1717790772492,7.35,161.76,161.75,2.2874]
[1717790772814,7.35,161.76,161.74,2.2875]
[1717790773018,8.4594,161.79,161.75,2.2874]
[1717790773214,7.35,161.76,161.75,2.2874]
[1717790774115,8.4594,161.79,161.75,2.2874]
[1717790774315,45.0,161.78,161.75,2.2874]
[1717790774625,45.0,161.78,161.74,2.2875]
[1717790775722,45.0,161.78,161.73,2.2877]
[1717790775909,2.2872,161.77,161.73,2.2877]
[1717790776523,45.0,161.78,161.74,2.2876]
[1717790776524,47.2871,161.78,161.74,2.2876]
[1717790777027,45.0,161.78,161.75,2.2874]
[1717790777201,47.287,161.78,161.74,2.2875]
[1717790777397,47.287,161.78,161.71,4.576]
[1717790777633,2.2872,161.77,161.73,2.2877]
[1717790778201,47.2871,161.78,161.73,2.2877]
[1717790778928,2.2872,161.77,161.73,2.2877]
[1717790779134,47.2871,161.78,161.73,2.2877]
[1717790779445,2.2872,161.77,161.73,2.2877]
[1717790779734,47.2871,161.78,161.73,2.2877]
[1717790779948,2.2872,161.77,161.73,2.2877]
[1717790780105,51.145,161.78,161.73,2.2877]
[1717790780301,2.2872,161.77,161.73,2.2877]
[1717790780497,2.2873,161.76,161.72,2.2878]
[1717790780918,2.2872,161.77,161.72,2.2878]
[1717790781134,2.2872,161.77,161.73,2.2877]
[1717790784051,2.2872,161.77,161.72,2.2878]
[1717790784643,2.2873,161.76,161.72,2.2878]
[1717790785853,2.2872,161.77,161.73,2.2877]
[1717790787356,2.2873,161.76,161.72,2.2878]
[1717790790130,2.2872,161.77,161.73,2.2877]
[1717790790451,2.2872,161.77,161.73,2.2876]
[1717790791977,8.7657,161.76,161.72,2.2878]
[1717790792157,45.0,161.75,161.72,2.2878]
[1717790792455,47.2874,161.75,161.72,2.2878]
[1717790792639,47.2874,161.75,161.71,2.2879]
[1717790793140,53.8269,161.75,161.72,2.2878]
[1717790793342,53.8269,161.75,161.71,2.288]
[1717790793550,6.0033,161.73,161.67,9.1544]
[1717790793729,2.288,161.71,161.64,9.1558]
[1717790793930,7.36,161.68,161.61,0.03848383]
[1717790794239,7.36,161.69,161.65,13.7327]
[1717790794449,8.2911,161.73,161.69,2.2883]
[1717790794646,6.0033,161.73,161.69,2.2883]
[1717790794827,45.0,161.72,161.69,2.2883]
[1717790795033,2.2876,161.74,161.69,2.2883]
[1717790795326,2.2876,161.74,161.7,2.2881]
[1717790795543,7.36,161.71,161.7,2.2881]
[1717790795833,7.36,161.71,161.69,2.2882]
[1717790796032,7.36,161.7,161.69,2.2882]
[1717790796631,7.36,161.7,161.68,2.2884]
[1717790796834,7.36,161.69,161.65,2.2888]
[1717790797155,4.5756,161.73,161.65,2.2888]
[1717790797156,7.36,161.66,161.65,2.2888]
[1717790797529,7.36,161.66,161.62,0.841331]